bitfinex-derivatives/quotes_ETHF0:USTF0_20250329
["timestamp","ask_amount","ask_price","bid_price","bid_amount"]
[1743229280373,1.06412,1880.2,1880.1,1.4478]
[1743229280573,4.5821,1880.3,1880.1,2.51197]
[1743229280777,3.2078,1880.4,1880.2,1.06412]
[1743229280778,1.06405,1880.4,1880.2,1.06412]
[1743229280979,4.2539,1880.5,1880.2,1.3714]
[1743229280980,1.06406,1880.3,1880.2,1.3714]
[1743229281170,1.06406,1880.3,1880.2,4.5792]
[1743229281473,1.06403,1880.4,1880.2,5.64329]
[1743229281679,5.31787,1880.5,1880.2,4.5792]
[1743229281876,4.2539,1880.5,1880.2,4.5792]
[1743229282079,5.31789,1880.5,1880.3,1.06404]
[1743229282575,4.2539,1880.5,1880.2,3.2078]
[1743229282780,1.06406,1880.3,1880.2,3.2078]
[1743229286975,1.06404,1880.4,1880.2,4.27188]
[1743229287280,1.06404,1880.4,1880.3,1.4479]
[1743229289483,0.7339,1880.5,1880.4,1.064]
[1743229289977,1.79785,1880.5,1880.4,1.064]
[1743229290178,1.79785,1880.5,1880.3,2.50752]
[1743229290378,1.79785,1880.5,1880.3,1.06402]
[1743229290675,0.7339,1880.5,1880.2,4.6513]
[1743229290880,1.06406,1880.3,1880.2,3.2078]
[1743229291382,1.06406,1880.3,1880.2,4.27192]
[1743229291576,1.06404,1880.4,1880.2,4.27192]
[1743229291878,1.06404,1880.4,1880.2,5.71539]
[1743229292585,1.06404,1880.4,1880.2,2.50759]
[1743229293082,1.06406,1880.3,1880.2,1.4435]
[1743229293383,1.06406,1880.3,1880.1,4.98803]
[1743229293584,1.06404,1880.4,1880.2,1.06412]
[1743229293775,1.06404,1880.4,1880.2,2.53982]
[1743229294676,1.06403,1880.4,1880.2,2.53979]
[1743229294976,1.064,1880.4,1880.3,1.4757]
[1743229295176,2.4923,1880.4,1880.3,1.4757]
[1743229295376,1.4283,1880.4,1880.3,1.06406]
[1743229295572,2.49232,1880.4,1880.2,2.53978]
[1743229296184,1.06402,1880.4,1880.3,1.4057]
[1743229296378,1.06402,1880.4,1880.3,2.46976]
[1743229296975,1.06402,1880.4,1880.3,1.4057]
[1743229297892,1.06402,1880.4,1880.3,2.46976]
[1743229298783,1.064,1880.4,1880.3,2.46976]
[1743229299083,3.2078,1880.7,1880.3,4.6135]
[1743229299275,4.27165,1880.7,1880.5,1.06395]
[1743229299474,4.27165,1880.7,1880.6,1.4591]
[1743229299671,4.27165,1880.7,1880.6,2.52299]
[1743229299672,3.2078,1880.7,1880.6,2.52299]
[1743229299871,1.3692,1880.9,1880.8,1.06378]
[1743229299872,0.6722,1880.9,1880.8,1.06378]
[1743229300684,49.149,1881.0,1880.9,1.06372]
[1743229300981,4.57663,1881.1,1880.9,1.06368]
[1743229301177,4.57663,1881.1,1880.8,5.4055]
[1743229301178,4.57663,1881.1,1881.0,1.4591]
[1743229301584,1.06361,1881.1,1881.0,1.4591]
[1743229302083,5.24679,1881.2,1881.0,3.23566]
[1743229302280,3.9048,1881.3,1881.1,1.06361]
[1743229302477,6.7188,1881.3,1881.1,2.48511]
[1743229302880,4.5635,1881.6,1881.2,1.4215]
[1743229303081,1.06349,1881.3,1881.2,1.4215]
[1743229303293,3.509,1881.5,1881.2,1.4215]
[1743229303584,4.57239,1881.5,1881.3,1.06348]
[1743229303776,4.57239,1881.5,1881.3,1.77638]
[1743229304177,3.509,1881.5,1881.1,4.27137]
[1743229304378,3.509,1881.5,1880.8,4.2476]
[1743229304379,2.6586,1881.4,1880.9,2.1159]
[1743229304578,2.6586,1881.4,1880.7,3.21577915]
[1743229304579,3.2078,1881.2,1880.7,3.21577915]
[1743229304791,1.06376,1880.9,1880.7,3.21577915]
[1743229305480,1.06378,1880.8,1880.7,3.21577915]
[1743229305782,4.58078,1880.8,1880.7,3.21577915]
[1743229306592,4.58078,1880.8,1880.7,0.00797915]
[1743229306892,1.06395,1880.5,1880.4,3.2078]
[1743229307197,6.7238,1880.5,1880.0,3.9374]
[1743229307386,6.7238,1880.5,1880.0,7.06883]
[1743229307690,1.06411,1880.3,1880.0,7.06883]
[1743229308083,1.06412,1880.2,1880.0,7.07680915]
[1743229308285,4.2311,1880.5,1880.1,1.06414]
[1743229308589,4.57997,1880.5,1880.2,1.4613]
[1743229308890,3.516,1880.5,1880.3,1.06404]
[1743229309186,3.516,1880.5,1880.4,1.4613]
[1743229309387,4.57995,1880.5,1880.4,2.1306]
[1743229309975,1.06403,1880.4,1880.2,3.2078]
[1743229310388,1.06406,1880.3,1880.2,3.2078]
[1743229311083,3.516,1880.5,1880.2,3.2078]
[1743229311283,1.06406,1880.3,1880.2,3.2078]
[1743229311485,1.06404,1880.4,1880.2,3.2078]
[1743229311891,1.06404,1880.4,1880.2,4.27191]
[1743229312290,1.06404,1880.4,1880.2,5.61501]
[1743229313192,1.06404,1880.4,1880.2,4.5509]
[1743229314396,1.06404,1880.4,1880.2,5.61501]
[1743229314695,1.06404,1880.4,1880.2,4.5509]
[1743229315198,1.365,1880.3,1880.2,4.5509]
[1743229315790,2.42906,1880.3,1880.2,4.5509]
[1743229316092,1.365,1880.3,1880.2,5.61502]
[1743229316493,2.42906,1880.3,1880.2,4.5509]
[1743229316996,2.42906,1880.3,1880.2,3.2078]
[1743229318691,1.06417,1880.1,1880.0,0.00797915]
[1743229319300,2.54507,1880.1,1880.0,0.00797915]
[1743229319493,2.54507,1880.1,1880.0,1.46377915]
[1743229323595,2.54507,1880.1,1879.7,1.2426]
[1743229323596,1.06434,1879.8,1879.7,0.7106]
[1743229323904,1.0644,1879.7,1879.6,1.4166]
[1743229324099,2.5064,1879.7,1879.6,1.4166]
[1743229324691,1.442,1879.7,1879.6,2.48106]
[1743229324996,0.00797915,1879.8,1879.7,1.0644]
[1743229325203,0.00797915,1879.8,1879.7,5.6888]
[1743229325699,3.2078,1880.2,1880.1,1.06417]
[1743229325896,5.98989,1880.3,1880.1,1.06417]
[1743229326099,5.98986,1880.3,1880.2,1.3633]
[1743229331299,2.47786,1880.3,1880.2,2.0369]
[1743229331506,1.4138,1880.3,1880.2,3.10102]
[1743229331900,2.47786,1880.3,1880.2,2.0369]
[1743229332806,1.4138,1880.3,1880.2,2.0369]
[1743229333105,3.51197915,1880.4,1880.3,1.06406]
[1743229333308,0.00797915,1880.4,1880.3,2.46056]
[1743229333502,0.00797915,1880.4,1880.3,5.66836]
[1743229334704,0.00797915,1880.4,1880.3,12.55131607]
[1743229336008,0.00797915,1880.4,1880.3,13.08331607]
[1743229336610,0.00797915,1880.4,1880.2,0.6736]
[1743229336802,1.06406,1880.3,1880.2,2.1044]
[1743229337002,1.06412,1880.2,1880.1,3.8854]
[1743229337609,2.47242,1880.2,1880.1,3.8854]
[1743229337911,2.47242,1880.2,1880.1,5.3162]
[1743229338707,1.06419,1880.1,1879.9,7.2388]
[1743229339008,0.00797915,1880.4,1879.9,5.8395]
[1743229339207,0.00797915,1880.4,1880.1,3.2078]
[1743229339507,1.06406,1880.3,1880.2,1.3665]
[1743229340211,0.00797915,1880.4,1880.3,1.06406]
[1743229340413,2.42317915,1880.4,1880.3,2.48776]
[1743229341511,2.42317915,1880.4,1880.3,1.4237]
[1743229342313,2.42317915,1880.4,1880.2,2.43058]
[1743229342612,1.4197,1880.3,1880.2,3.85088]
[1743229344510,2.48376,1880.3,1880.2,2.7868]
[1743229344709,1.06423,1880.0,1879.9,3.9087]
[1743229345010,1.0644,1879.7,1879.5,1.46780915]
[1743229345307,1.3756,1879.6,1879.5,3.26338915]
[1743229345500,1.3756,1879.6,1879.5,2.19887915]
[1743229345706,2.44006,1879.6,1879.5,0.71757915]
[1743229345910,2.44006,1879.6,1879.5,0.00797915]
[1743229348624,5.93806,1879.6,1879.5,0.00797915]
[1743229349114,6.62346,1879.6,1879.5,0.00797915]
[1743229353320,6.62346,1879.6,1879.5,1.47257915]
[1743229353709,5.559,1879.6,1879.5,2.53708915]
[1743229354020,3.494,1879.8,1879.5,1.47257915]
[1743229354214,1.3871,1879.8,1879.7,1.0644]
[1743229354609,4.55925,1880.0,1879.8,1.06433]
[1743229354920,5.94635,1880.0,1879.9,1.4646]
[1743229355116,5.94635,1880.0,1879.8,3.2078]
[1743229355117,1.06429,1879.9,1879.8,3.2078]
[1743229355319,2.45139,1879.9,1879.8,3.2078]
[1743229355621,1.0644,1879.7,1879.6,3.2078]
[1743229355819,1.06446,1879.6,1879.5,0.00797915]
[1743229356022,1.3871,1879.6,1879.5,0.00797915]
[1743229356324,1.3871,1879.6,1879.5,1.77048915]
[1743229356719,3.508,1879.9,1879.5,2.04557915]
[1743229357023,1.387,1879.8,1879.7,4.2722]
[1743229357225,1.387,1879.8,1879.7,5.6118]
[1743229357415,1.06423,1880.0,1879.8,1.06434]
[1743229357616,2.45123,1880.0,1879.9,1.3396]
[1743229357812,1.387,1880.0,1879.9,1.3396]
[1743229358021,1.387,1880.0,1879.9,3.10189]
[1743229358220,2.45123,1880.0,1879.9,2.0376]
[1743229358826,49.146,1880.2,1880.0,1.06423]
[1743229359123,2.45117,1880.1,1880.0,0.6852]
[1743229360026,1.387,1880.1,1880.0,1.74943]
[1743229360323,2.45117,1880.1,1880.0,0.6852]
[1743229361527,1.387,1880.1,1880.0,1.74943]
[1743229361823,1.06415,1880.2,1880.0,1.74943]
[1743229362119,0.00797915,1880.4,1880.1,3.2078]
[1743229362327,0.00797915,1880.4,1880.3,4.27186]
[1743229362718,0.00797915,1880.4,1880.3,11.31408353]
[1743229363632,1.07197915,1880.4,1880.3,3.2078]
[1743229363828,1.47587915,1880.4,1880.3,1.06406]
[1743229364019,1.47587915,1880.4,1880.3,4.27186]
[1743229364525,0.00797915,1880.4,1880.3,4.27186]
[1743229364725,0.00797915,1880.4,1880.3,11.17208462]
[1743229370531,1.40087915,1880.4,1880.3,11.17208462]
[1743229371727,2.46487915,1880.4,1880.3,11.17208462]
[1743229372328,1.40087915,1880.4,1880.3,11.17208462]
[1743229373536,2.46487915,1880.4,1880.3,11.17208462]
[1743229373939,1.40087915,1880.4,1880.3,11.17208462]
[1743229375638,1.40087915,1880.4,1880.3,12.57198462]
[1743229375937,0.00797915,1880.4,1880.3,13.10398462]
[1743229376239,0.00797915,1880.4,1880.3,12.57198462]
[1743229376433,0.00797915,1880.4,1880.3,13.10398462]
[1743229385050,49.143,1881.3,1880.7,2.65951]
[1743229385350,2.186,1881.2,1881.0,3.2078]
[1743229385652,2.186,1881.2,1880.8,2.8473]
[1743229385653,1.06366,1881.0,1880.9,2.5437]
[1743229385838,3.23623,1881.1,1880.9,2.5437]
[1743229386042,3.23625,1881.1,1880.9,2.5437]
[1743229386251,2.51726,1881.0,1880.9,1.48]
[1743229386553,2.51726,1881.0,1880.8,5.64680915]
[1743229386749,2.40942,1880.9,1880.8,3.21577915]
[1743229387052,2.40942,1880.9,1880.8,0.00797915]
[1743229390055,5.89542,1880.9,1880.8,0.00797915]
[1743229397756,9.10322,1880.9,1880.8,0.00797915]
[1743229407564,1.06412,1880.2,1880.1,3.7398]
[1743229407770,1.06412,1880.2,1880.1,5.9791]
[1743229408464,1.06412,1880.2,1880.1,6.5111]
[1743229408669,1.06412,1880.2,1880.1,5.9791]
[1743229409068,1.06412,1880.2,1880.1,6.5111]
[1743229409565,1.06412,1880.2,1880.1,5.9791]
[1743229410461,1.06412,1880.2,1880.1,6.5111]
[1743229410666,1.06412,1880.2,1880.1,5.9791]
[1743229410965,3.2078,1880.8,1880.1,13.53577942]
[1743229411171,1.06399,1880.5,1880.3,4.27184]
[1743229411467,1.06399,1880.5,1880.4,2.1426]
[1743229413065,3.47,1880.7,1880.4,2.1426]
[1743229413368,1.0639,1880.6,1880.5,2.1239]
[1743229413572,1.0639,1880.6,1880.5,0.6855]
[1743229413869,2.4557,1880.6,1880.5,0.6855]
[1743229414270,1.0639,1880.6,1880.5,0.6855]
[1743229417565,1.3518,1880.7,1880.5,0.6855]
[1743229417771,1.06386,1880.7,1880.5,1.74942]
[1743229418172,8.1483,1880.8,1880.5,1.74942]
[1743229418173,1.06389,1880.6,1880.5,1.74942]
[1743229418370,1.06387,1880.7,1880.5,1.74942]
[1743229418974,1.06389,1880.6,1880.5,0.6855]
[1743229420372,2.54137,1880.7,1880.5,1.74945]
[1743229420576,1.06389,1880.6,1880.5,1.74945]
[1743229420772,2.54137,1880.7,1880.5,1.74945]
[1743229420974,1.06389,1880.6,1880.5,0.6855]
[1743229422972,2.54135,1880.7,1880.5,1.74943]
[1743229423373,1.06389,1880.6,1880.5,0.6855]
[1743229423573,2.43169,1880.6,1880.5,0.6855]
[1743229424967,2.43169,1880.6,1880.5,2.0493]
[1743229431174,1.06395,1880.5,1880.4,0.7042]
[1743229431479,1.06406,1880.3,1880.2,5.3747]
[1743229432987,1.06406,1880.3,1880.2,2.1669]
[1743229433675,1.06412,1880.2,1880.1,1.2045]
[1743229433883,3.23282,1880.2,1880.1,1.2045]
[1743229435981,3.23282,1880.2,1880.1,0.6725]
[1743229436484,3.23282,1880.2,1880.1,1.2045]
[1743229439879,3.23282,1880.2,1880.1,4.4123]
[1743229440182,3.23282,1880.2,1880.1,1.2045]
[1743229442186,2.54062,1880.2,1880.1,1.2045]
[1743229443893,1.06417,1880.1,1880.0,3.21577915]
[1743229444087,3.95847,1880.1,1880.0,3.21577915]
[1743229449086,3.95847,1880.1,1880.0,0.00797915]
[1743229451389,3.24127,1880.1,1880.0,0.00797915]
[1743229451981,3.24127,1880.1,1880.0,0.70987915]
[1743229453793,2.50907,1880.1,1880.0,1.43647915]
[1743229453991,0.7132,1880.5,1880.0,1.43647915]
[1743229454199,2.47807,1880.5,1880.3,1.06402]
[1743229454495,2.47807,1880.5,1880.4,2.8195]
[1743229455199,1.4141,1880.5,1880.4,3.8835]
[1743229455496,1.0639,1880.6,1880.4,6.0273]
[1743229455799,1.0639,1880.6,1880.5,1.3572]
[1743229455989,2.478,1880.6,1880.5,1.3572]
[1743229457094,1.4141,1880.6,1880.5,1.3572]
[1743229457296,4.50987,1880.7,1880.5,1.3572]
[1743229457496,5.91967,1880.7,1880.5,1.3572]
[1743229457801,1.06387,1880.7,1880.5,2.42114]
[1743229457991,1.4098,1880.8,1880.6,3.2078]
[1743229458195,1.4098,1880.8,1880.6,4.5867]
[1743229458501,2.47358,1880.8,1880.7,2.0965]
[1743229458699,1.4098,1880.8,1880.7,2.0965]
[1743229458993,0.00797915,1881.0,1880.7,2.0965]
[1743229458994,1.07168915,1881.0,1880.7,2.0965]
[1743229459193,1.06373,1880.9,1880.8,2.1191]
[1743229459498,2.48145915,1881.0,1880.8,6.39066]
[1743229459690,2.48145915,1881.0,1880.9,1.3575]
[1743229460096,1.41777915,1881.0,1880.9,1.3575]
[1743229460299,2.48143915,1881.0,1880.9,1.3575]
[1743229460694,1.41777915,1881.0,1880.9,2.42122]
[1743229461197,0.00797915,1881.0,1880.9,2.42122]
[1743229462696,0.00797915,1881.0,1880.9,9.25001191]
[1743229464000,1.4621,1881.5,1881.4,1.06344]
[1743229464202,8.28426446,1881.6,1881.5,1.06338]
[1743229464409,1.06329,1881.7,1881.5,7.94977297]
[1743229464599,1.06329,1881.7,1881.6,1.3505]
[1743229465004,1.06348,1881.4,1881.2,3.9263]
[1743229465312,2.65818,1881.7,1881.2,5.2768]
[1743229465313,4.8236,1881.6,1881.2,5.2768]
[1743229465510,1.06338,1881.5,1881.3,7.95857478]
[1743229465698,1.06338,1881.5,1881.4,1.3376]
[1743229465903,1.06346,1881.4,1881.2,4.98983]
[1743229466098,1.06346,1881.4,1881.2,6.32743]
[1743229466299,1.06346,1881.4,1881.2,5.2639]
[1743229466712,1.06346,1881.4,1881.2,6.32744]
[1743229467105,1.06346,1881.4,1881.2,5.9794]
[1743229467910,1.06344,1881.4,1881.2,7.04293]
[1743229468112,1.06344,1881.4,1881.3,1.3376]
[1743229473915,1.06349,1881.3,1881.2,6.0013]
[1743229475415,1.06346,1881.4,1881.2,7.06482]
[1743229475615,1.06346,1881.4,1881.3,1.3474]
[1743229476111,1.06346,1881.4,1881.3,2.41089]
[1743229476513,1.06346,1881.4,1881.3,1.3474]
[1743229478010,4.8236,1881.6,1881.3,2.41085]
[1743229478011,1.0634,1881.5,1881.3,2.41085]
[1743229478210,1.0634,1881.5,1881.4,1.4481]
[1743229483813,1.73667,1881.6,1881.4,2.51154]
[1743229484016,0.6733,1881.6,1881.4,1.4481]
[1743229484219,1.06338,1881.5,1881.4,1.4481]
[1743229486020,1.06338,1881.5,1881.3,1.06346]
[1743229486223,1.06344,1881.4,1881.3,2.41126]
[1743229487223,1.75292,1881.5,1881.3,2.41126]
[1743229487724,1.06342,1881.5,1881.3,2.41126]
[1743229487924,1.06342,1881.5,1881.4,1.3674]
[1743229489528,1.73665,1881.6,1881.4,2.43079]
[1743229489922,1.73665,1881.6,1881.5,2.0581]
[1743229491213,0.6733,1881.6,1881.5,3.12148]
[1743229491419,3.432,1881.7,1881.5,2.0581]
[1743229491620,3.432,1881.7,1881.4,4.2712]
[1743229491621,1.06335,1881.6,1881.4,4.2712]
[1743229491824,1.06335,1881.6,1881.1,6.53797915]
[1743229491825,0.7332,1881.6,1881.2,3.2078]
[1743229492022,1.06349,1881.3,1881.1,1.90537915]
[1743229492327,3.432,1881.7,1881.3,6.97505321]
[1743229492524,0.714,1881.8,1881.5,3.2078]
[1743229492725,5.20922,1881.8,1881.6,1.754]
[1743229492922,5.20922,1881.8,1881.7,1.3654]
[1743229493724,1.06332,1881.6,1881.3,3.2078]
[1743229493932,4.146,1881.8,1881.3,8.62561]
[1743229494224,3.2078,1882.0,1881.5,3.2078]
[1743229494423,3.8938,1882.0,1881.9,1.06315]
[1743229494624,4.1102,1882.5,1881.9,3.2078]
[1743229494833,4.7962,1882.5,1882.3,1.06291]
[1743229495029,4.7962,1882.5,1882.1,4.27081]
[1743229495030,1.4471,1882.4,1882.1,4.27081]
[1743229495221,2.51,1882.4,1882.2,2.03847915]
[1743229495421,2.51,1882.4,1882.3,1.3434]
[1743229495622,2.51,1882.4,1882.3,2.0721]
[1743229495819,1.06293,1882.3,1882.2,0.00797915]
[1743229496026,2.51003,1882.3,1882.2,0.00797915]
[1743229497932,5.95903,1882.3,1882.2,0.00797915]
[1743229500829,1.4471,1882.3,1882.2,0.00797915]
[1743229501032,1.06277,1882.6,1882.3,1.06293]
[1743229501240,1.3907,1882.5,1882.4,2.8295]
[1743229501534,9.11132,1882.5,1882.4,6.75450652]
[1743229501738,9.11132,1882.5,1882.2,0.00797915]
[1743229501739,1.06293,1882.3,1882.2,0.00797915]
[1743229502438,2.51313,1882.3,1882.2,0.00797915]
[1743229505133,4.51873,1882.7,1882.2,8.4558823]
[1743229505341,1.367,1882.6,1882.3,5.3867]
[1743229505533,1.367,1882.6,1882.4,2.1597]
[1743229505733,2.42976,1882.6,1882.5,1.4684]
[1743229506228,1.367,1882.6,1882.5,1.4684]
[1743229506423,0.7009,1882.9,1882.5,4.6762]
[1743229506645,3.2078,1883.4,1882.9,1.06256]
[1743229506833,1.06248,1883.1,1883.0,2.8702]
[1743229507030,2.7643,1883.3,1882.9,1.06257]
[1743229507231,1.06245,1883.2,1882.9,3.22226]
[1743229507433,2.42948,1883.1,1882.9,2.1597]
[1743229507739,1.367,1883.1,1883.0,7.83478603]
[1743229508239,3.474,1883.6,1883.0,11.44845603]
[1743229508532,4.8685,1883.6,1883.3,1.06234]
[1743229508839,4.8685,1883.6,1883.4,1.3556]
[1743229509033,1.06225,1883.5,1883.4,1.3556]
[1743229509338,2.45675,1883.5,1883.4,1.3556]
[1743229510140,1.3945,1883.5,1883.4,1.3556]
[1743229510338,1.3945,1883.5,1883.4,4.5634]
[1743229510542,0.6759,1883.8,1883.7,1.06214]
[1743229510734,19.63258362,1884.1,1883.8,1.06203]
[1743229510939,16.14758362,1884.1,1883.7,1.06212]
[1743229511140,19.63058362,1884.1,1883.6,3.2078]
[1743229511443,1.06209,1883.8,1883.6,3.2078]
[1743229511632,6.6908,1884.1,1883.6,3.2078]
[1743229511836,1.3717,1884.0,1883.7,9.22224044]
[1743229512035,1.3717,1884.0,1883.9,1.06203]
[1743229512336,1.06188,1884.2,1883.9,1.06202]
[1743229512542,1.06191,1884.1,1884.0,1.4352]
[1743229512943,1.3717,1884.2,1883.8,3.2078]
[1743229512944,1.06203,1883.9,1883.8,3.2078]
[1743229513135,1.06203,1883.9,1883.4,1.0623]
[1743229513136,3.2078,1883.9,1883.4,1.0623]
[1743229513333,1.0622,1883.6,1883.5,1.4352]
[1743229513537,1.0622,1883.6,1883.5,8.22477658]
[1743229513737,1.0622,1883.6,1883.5,1.4352]
[1743229515447,1.06231,1883.4,1883.3,0.5312]
[1743229515652,1.3717,1883.8,1883.2,1.4369]
[1743229515653,6.7018,1883.7,1883.2,1.4369]
[1743229515856,1.3739,1883.3,1883.2,2.8084]
[1743229516352,2.43626,1883.3,1883.2,2.8084]
[1743229516545,1.3739,1883.3,1883.2,2.8084]
[1743229516855,1.3739,1883.3,1883.1,0.00797915]
[1743229517148,1.06242,1883.2,1883.1,0.00797915]
[1743229518756,2.43628,1883.3,1883.1,0.00797915]
[1743229518952,2.43628,1883.3,1883.1,1.07043915]
[1743229519152,2.43628,1883.3,1883.2,1.449]
[1743229519454,1.3739,1883.3,1883.2,2.51142]
[1743229519654,4.27008,1883.5,1883.3,1.06234]
[1743229519850,4.5863,1883.5,1883.4,2.51131]
[1743229520056,1.3785,1883.5,1883.4,2.51131]
[1743229520446,2.44075,1883.5,1883.4,1.449]
[1743229521555,2.44079,1883.5,1883.3,0.7287]
[1743229521853,2.44079,1883.5,1883.4,1.4578]
[1743229522851,1.3785,1883.5,1883.4,1.4578]
[1743229523048,2.44075,1883.5,1883.4,1.4578]
[1743229523253,1.3785,1883.5,1883.2,3.8996]
[1743229523441,1.3785,1883.5,1883.2,5.3574]
[1743229523857,1.06231,1883.4,1883.2,5.3574]
[1743229524051,2.47886,1883.3,1883.2,5.3574]
[1743229524251,1.4165,1883.3,1883.2,3.21202]
[1743229524949,1.4165,1883.3,1883.2,2.1496]
[1743229524950,2.47886,1883.3,1883.2,2.1496]
[1743229525147,1.06242,1883.2,1883.1,0.00797915]
[1743229525349,2.47892,1883.2,1883.1,0.00797915]
[1743229530163,3.21052,1883.2,1883.1,0.00797915]
[1743229533165,1.06265,1882.8,1882.7,0.7399]
[1743229533369,1.0627,1882.7,1882.6,1.4649]
[1743229533661,2.4351,1882.7,1882.6,4.6727]
[1743229534055,2.4351,1882.7,1882.6,3.2078]
[1743229534761,1.3724,1882.7,1882.6,1.06276]
[1743229534959,1.3724,1882.7,1882.6,2.52766]
[1743229535161,1.3724,1882.7,1882.6,1.4649]
[1743229535961,2.4351,1882.7,1882.6,1.4649]
[1743229536967,1.3724,1882.7,1882.6,2.52766]
[1743229537262,0.00797915,1882.8,1882.7,1.0627]
[1743229537563,0.00797915,1882.8,1882.7,5.7495]
[1743229540267,0.00797915,1882.8,1882.7,2.5417]
[1743229541159,1.38637915,1882.8,1882.7,2.5417]
[1743229542068,2.44902915,1882.8,1882.7,2.5417]
[1743229542764,2.44902915,1882.8,1882.7,1.479]
[1743229542765,1.38637915,1882.8,1882.7,1.479]
[1743229542964,1.0627,1882.7,1882.6,3.2078]
[1743229543470,1.0627,1882.7,1882.6,4.5906]
[1743229544271,1.38637915,1882.8,1882.6,5.65333]
[1743229544471,2.44905915,1882.8,1882.7,1.3828]
[1743229546771,1.0627,1882.7,1882.6,3.2078]
[1743229546973,2.4864,1882.7,1882.6,3.2078]
[1743229547465,2.4864,1882.7,1882.6,4.5578]
[1743229548561,2.4864,1882.7,1882.6,3.2078]
[1743229548968,2.4864,1882.7,1882.6,4.6333]
[1743229550272,2.4864,1882.7,1882.6,3.2078]
[1743229550871,2.4864,1882.7,1882.6,4.5735]
[1743229553072,2.4864,1882.7,1882.6,3.2078]
[1743229553268,1.06276,1882.6,1882.5,0.70227915]
[1743229553475,3.15156,1882.6,1882.5,0.00797915]
[1743229553775,6.62556,1882.6,1882.5,0.00797915]
[1743229554174,1.06293,1882.3,1882.2,3.60926197]
[1743229554866,1.06293,1882.3,1882.2,3.2078]
[1743229557575,1.06293,1882.3,1882.2,4.594]
[1743229557879,2.52861,1882.4,1882.2,5.65697]
[1743229558074,2.5286,1882.4,1882.2,4.27076]
[1743229558279,2.43933,1882.3,1882.2,3.2078]
[1743229561568,0.7042,1882.6,1882.3,1.06289]
[1743229561768,1.0629,1882.4,1882.2,4.27076]
[1743229561968,1.4079,1882.3,1882.2,4.27076]
[1743229562181,2.47083,1882.3,1882.2,4.27076]
[1743229562379,1.4079,1882.3,1882.2,4.27076]
[1743229563174,2.47083,1882.3,1882.2,3.2078]
[1743229563680,1.4079,1882.3,1882.2,4.27079]
[1743229563880,2.47083,1882.3,1882.2,3.2078]
[1743229564480,1.4079,1882.3,1882.2,4.27079]
[1743229565180,2.47083,1882.3,1882.2,4.27079]
[1743229565383,1.4079,1882.3,1882.2,4.27079]
[1743229566188,1.4079,1882.3,1882.2,3.2078]
[1743229566384,1.4079,1882.3,1882.2,4.27079]
[1743229566684,1.4079,1882.3,1882.2,3.2078]
[1743229566685,2.47083,1882.3,1882.2,3.2078]
[1743229567182,1.4079,1882.3,1882.2,1.06299]
[1743229567491,4.1722,1882.6,1882.3,1.06288]
[1743229567689,1.4647,1882.5,1882.3,1.06288]
[1743229567984,1.06293,1882.3,1882.2,1.06294]
[1743229568384,1.06299,1882.2,1882.1,2.83072872]
[1743229568587,1.06299,1882.2,1882.1,2.42227915]
[1743229568784,0.7048,1882.4,1882.2,1.06296]
[1743229568988,1.4647,1882.3,1882.2,1.06296]
[1743229569384,1.4647,1882.3,1882.2,4.27076]
[1743229574288,1.06284,1882.5,1882.4,1.06287]
[1743229574485,1.06287,1882.4,1882.3,1.0629]
[1743229574693,1.06287,1882.4,1882.2,4.27074]
[1743229575091,1.06287,1882.4,1882.3,1.3701]
[1743229575390,1.06287,1882.4,1882.3,2.43303]
[1743229576088,1.06293,1882.3,1882.2,3.2078]
[1743229576396,2.65761,1882.1,1881.6,3.2078]
[1743229576590,1.06323,1881.8,1881.6,4.27112]
[1743229576892,1.4567,1881.7,1881.6,6.0440284]
[1743229577486,1.4567,1881.7,1881.6,5.64122]
[1743229577892,1.4567,1881.7,1881.6,6.36132]
[1743229578488,2.51997,1881.7,1881.6,5.298]
[1743229579196,2.51997,1881.7,1881.6,3.2078]
[1743229579393,3.22267,1881.7,1881.6,3.2078]
[1743229579595,3.94207,1881.7,1881.6,3.2078]
[1743229580094,7.39507,1881.7,1881.6,3.2078]
[1743229584597,1.06332,1881.6,1881.5,0.00797915]
[1743229584796,2.53522,1881.6,1881.5,0.00797915]
[1743229596996,5.97322,1881.6,1881.5,0.00797915]
[1743229598204,5.97322,1881.6,1881.5,0.67617915]
[1743229598607,0.00797915,1881.8,1881.5,3.88397915]
[1743229598802,0.00797915,1881.8,1881.7,1.06327]
[1743229599112,1.06293,1882.3,1881.7,5.7078]
[1743229599311,1.06293,1882.3,1882.1,1.06303]
[1743229599497,1.06293,1882.3,1882.2,1.4111]
[1743229599902,2.50493,1882.3,1882.2,1.4111]
[1743229605509,2.50493,1882.3,1882.2,2.7592]
[1743229611515,1.442,1882.3,1882.2,2.7592]
[1743229611715,2.50493,1882.3,1882.2,2.7592]
[1743229616521,0.00797915,1882.4,1882.3,1.06293]
[1743229616825,0.00797915,1882.4,1882.3,2.46503]
[1743229621037,1.07084915,1882.4,1882.3,1.4021]
[1743229621339,1.06293,1882.3,1882.2,0.6745]
[1743229621530,1.06293,1882.3,1882.1,1.06303]
[1743229621531,1.063,1882.2,1882.0,4.27086]
[1743229621725,1.3943,1882.1,1882.0,6.92656]
[1743229621929,1.3943,1882.1,1882.0,6.39456]
[1743229622129,1.3943,1882.1,1882.0,13.45075077]
[1743229623140,1.3943,1882.1,1882.0,13.98275077]
[1743229623641,1.3943,1882.1,1882.0,13.45075077]
[1743229624539,1.3943,1882.1,1882.0,5.3315]
[1743229624540,2.45734,1882.1,1882.0,5.3315]